[Event "WSTCC-50 2024"]
[Site "Krakow"]
[Date "2024.07.06"]
[Round "5.10"]
[White "Lampe, Dirk"]
[Black "Davis, Lee"]
[Result "1-0"]
[ECO "B12"]
[WhiteElo "2158"]
[BlackElo "1932"]
[Annotator "RC"]
[PlyCount "89"]
[EventDate "2024.07.01"]
[EventType "team-tourn"]
[EventCountry "POL"]
[SourceTitle "playchess.com"]
[Source "ChessBase"]
[SourceQuality "1"]
[TimeControl "40/5400+30:1800+30"]

1. e4 {[%emt 0:00:08]} c6 {[%emt 0:00:12]} 2. d4 {[%emt 0:00:10]} d5 {[%emt 0:00:07]} 3. e5 {[%emt 0:00:11]} Bf5 {[%emt 0:00:11]} 4. Nf3 {[%emt 0:00:13]} e6 {[%emt 0:00:16]} 5. Be2 {[%emt 0:00:28]} c5 {[%emt 0:00:18]} 6. c3 {[%emt 0:00:18]} Nc6 {[%emt 0:00:06]} 7. O-O {[%emt 0:00:11]} Bxb1 {[%emt 0:07:15]} 8. Rxb1 {[%emt 0:00:12]} Nge7 {[%emt 0:00:34]} 9. dxc5 {[%emt 0:04:07]} Ng6 {[%emt 0:00:19]} 10. b4 {[%emt 0:00:43]} Ngxe5 {[%emt 0:01:50]} 11. Nxe5 {[%emt 0:11:02]} Nxe5 {[%emt 0:00:04]} 12. Qa4+ {[%emt 0:12:59]} Nc6 {[%emt 0:00:34]} 13. c4 {[%emt 0:09:10]} Be7 {[%emt 0:01:49]} 14. cxd5 {[%emt 0:00:25]} exd5 {[%emt 0:00:49]} 15. Bb2 {[%emt 0:08:40]} Bf6 {[%emt 0:02:00]} 16. Bb5 {[%emt 0:00:27]} O-O {[%emt 0:01:32]} 17. Bxc6 {[%emt 0:00:20]} bxc6 {[%emt 0:00:24]} 18. Qxc6 {[%emt 0:00:13]} Bxb2 {[%emt 0:01:07]} 19. Rxb2 {[%emt 0:00:31]} Re8 {[%emt 0:01:55]} 20. Rd2 {[%emt 0:01:50]} Qh4 {[%emt 0:02:43]} 21. a3 {[%emt 0:01:56]} d4 {[%emt 0:04:18]} 22. g3 {[%emt 0:00:17]} Qg4 {[%emt 0:00:38]} 23. Rfd1 {[%emt 0:01:31]} Rac8 {[%emt 0:06:55]} 24. Qd6 {[%emt 0:01:23]} Qf3 {[%emt 0:02:42]} 25. Qa6 {[%emt 0:02:43]} Rcd8 {[%emt 0:03:45]} 26. Qd3 {[%emt 0:01:06]} Qc6 {[%emt 0:02:49]} 27. Qc4 {[%emt 0:00:22]} Qf3 {[%emt 0:05:09]} 28. Rd3 {[%emt 0:02:05]} Qe2 {[%emt 0:01:27]} 29. Qc1 {[%emt 0:00:36]} Qg4 {[%emt 0:06:07]} 30. R1d2 {[%emt 0:05:59]} Re2 {[%emt 0:10:31]} 31. Rxe2 {[%emt 0:02:29]} Qxe2 {[%emt 0:00:06]} 32. Qd1 {[%emt 0:00:08]} Qe4 {[%emt 0:02:32]} 33. h4 {[%emt 0:10:31]} h5 {[%emt 0:01:13]} 34. Qd2 {[%emt 0:03:15]} g6 {[%emt 0:06:21]} 35. a4 {[%emt 0:03:56]} Qd5 {[%emt 0:09:57]} 36. Qg5 {[%emt 0:00:31]} Qa8 {[%emt 0:03:14]} 37. c6 {[%emt 0:01:02]} Re8 {[%emt 0:00:11]} 38. b5 {[%emt 0:00:42]} a6 {[%emt 0:00:30]} 39. Rxd4 {[%emt 0:03:48]} axb5 {[%emt 0:01:13]} 40. Qxb5 {[%emt 0:00:07]} Re6 {[%emt 0:10:30]} 41. Qb7 {[%emt 0:30:32]} Qe8 {[%emt 0:30:36]} 42. c7 {[%emt 0:00:30]} Re1+ {[%emt 0:00:17]} 43. Kg2 {[%emt 0:01:25]} Qe2 {[%emt 0:00:21]} 44. c8=Q+ {[%emt 0:00:10]} Kg7 {[%emt 0:00:22]} 45. Qc4 1-0

[Event "WSTCC-50 2024"]
[Site "Krakow"]
[Date "2024.07.06"]
[Round "5.10"]
[White "Jhunjhnuwala, Naresh"]
[Black "Ograbek, Grzegorz"]
[Result "0-1"]
[ECO "B07"]
[WhiteElo "2009"]
[BlackElo "2063"]
[Annotator "RC"]
[PlyCount "102"]
[EventDate "2024.07.01"]
[EventType "team-tourn"]
[EventCountry "POL"]
[SourceTitle "playchess.com"]
[Source "ChessBase"]
[SourceQuality "1"]
[TimeControl "40/5400+30:1800+30"]

1. e4 {[%emt 0:00:02]} d6 {[%emt 0:00:20]} 2. d4 {[%emt 0:00:13]} Nf6 {[%emt 0:00:16]} 3. Nc3 {[%emt 0:00:46]} c6 {[%emt 0:01:13]} 4. f4 {[%emt 0:00:31]} g6 {[%emt 0:02:30]} 5. Nf3 {[%emt 0:00:44]} Bg7 {[%emt 0:00:09]} 6. Be2 {[%emt 0:02:49]} b5 {[%emt 0:00:50]} 7. a3 {[%emt 0:00:27]} a6 {[%emt 0:00:35]} 8. O-O {[%emt 0:05:06]} O-O {[%emt 0:00:07]} 9. e5 {[%emt 0:06:17]} Nd5 {[%emt 0:00:31]} 10. Nxd5 {[%emt 0:01:10]} cxd5 {[%emt 0:00:07]} 11. Bd3 {[%emt 0:01:10]} Nc6 {[%emt 0:03:28]} 12. c3 {[%emt 0:00:28]} dxe5 {[%emt 0:17:51]} 13. fxe5 {[%emt 0:00:35]} f6 {[%emt 0:00:11]} 14. exf6 {[%emt 0:06:09]} exf6 {[%emt 0:01:06]} 15. Bf4 {[%emt 0:01:21]} Be6 {[%emt 0:09:28]} 16. Qe1 {[%emt 0:06:24]} Qd7 {[%emt 0:02:01]} 17. Qh4 {[%emt 0:14:55]} Ne7 {[%emt 0:02:18]} 18. Rae1 {[%emt 0:03:08]} Nf5 {[%emt 0:05:54]} 19. Qf2 {[%emt 0:00:31]} Nd6 {[%emt 0:00:19]} 20. Nd2 {[%emt 0:06:13]} Nc4 {[%emt 0:06:56]} 21. Nxc4 {[%emt 0:08:40]} bxc4 {[%emt 0:00:09]} 22. Bb1 {[%emt 0:00:04]} Rfe8 {[%emt 0:10:05]} 23. Bc1 {[%emt 0:05:07]} Bf7 {[%emt 0:02:18]} 24. Rxe8+ {[%emt 0:02:06]} Rxe8 {[%emt 0:00:07]} 25. Re1 {[%emt 0:00:12]} Rxe1+ {[%emt 0:01:54]} 26. Qxe1 {[%emt 0:00:06]} Bf8 {[%emt 0:00:20]} 27. Qe2 {[%emt 0:02:09]} Bd6 {[%emt 0:00:54]} 28. Bc2 {[%emt 0:02:14]} Qe6 {[%emt 0:08:52]} 29. Qxe6 {[%emt 0:00:32]} Bxe6 {[%emt 0:00:07]} 30. g3 {[%emt 0:00:21]} Kf7 {[%emt 0:00:13]} 31. Kf2 {[%emt 0:00:22]} h5 {[%emt 0:02:26]} 32. Bf4 {[%emt 0:03:30]} Bxf4 {[%emt 0:08:27]} 33. gxf4 {[%emt 0:00:07]} a5 {[%emt 0:07:07]} 34. Kg3 {[%emt 0:00:28]} g5 {[%emt 0:00:27]} 35. fxg5 {[%emt 0:00:20]} fxg5 {[%emt 0:00:07]} 36. h4 {[%emt 0:08:58]} Kf6 {[%emt 0:00:07]} 37. hxg5+ {[%emt 0:06:21]} Kxg5 {[%emt 0:00:07]} 38. b3 {[%emt 0:00:50]} cxb3 {[%emt 0:00:05]} 39. Bxb3 {[%emt 0:00:09]} h4+ {[%emt 0:00:13]} 40. Kf3 {[%emt 0:00:52]} Bg4+ {[%emt 0:03:35]} 41. Kf2 {[%emt 0:30:55]} Be6 {[%emt 0:30:11]} 42. Kf3 {[%emt 0:00:06]} Bf7 {[%emt 0:00:30]} 43. Ba4 {[%emt 0:02:17]} Bg6 {[%emt 0:00:00]} 44. Bc6 {[%emt 0:00:00]} Be4+ {[%emt 0:00:00]} 45. Kf2 {[%emt 0:00:00]} Kf4 {[%emt 0:00:00]} 46. Bd7 {[%emt 0:00:00]} Bf5 {[%emt 0:00:00]} 47. Bc6 {[%emt 0:00:00]} Be6 {[%emt 0:00:00]} 48. Bb5 {[%emt 0:00:00]} Ke4 {[%emt 0:00:00]} 49. Be2 {[%emt 0:00:00]} h3 {[%emt 0:00:58]} 50. Bf1 {[%emt 0:00:03]} h2 {[%emt 0:00:18]} 51. Kg2 {[%emt 0:03:11]} Bh3+ {[%emt 0:00:22]} 0-1

[Event "WSTCC-50 2024"]
[Site "Krakow"]
[Date "2024.07.06"]
[Round "5.11"]
[White "Clark, Gary M"]
[Black "Ginsburg, Mark"]
[Result "1/2-1/2"]
[ECO "A61"]
[WhiteElo "2299"]
[BlackElo "2272"]
[Annotator "RC"]
[PlyCount "32"]
[EventDate "2024.07.01"]
[EventType "team-tourn"]
[EventCountry "POL"]
[SourceTitle "playchess.com"]
[Source "ChessBase"]
[SourceQuality "1"]
[TimeControl "40/5400+30:1800+30"]

1. d4 {[%emt 0:00:09]} Nf6 {[%emt 0:00:28]} 2. c4 {[%emt 0:00:32]} e6 {[%emt 0:00:30]} 3. Nf3 {[%emt 0:00:27]} c5 {[%emt 0:02:02]} 4. d5 {[%emt 0:00:40]} exd5 {[%emt 0:00:12]} 5. cxd5 {[%emt 0:00:02]} d6 {[%emt 0:00:06]} 6. Nc3 {[%emt 0:00:15]} g6 {[%emt 0:00:09]} 7. Nd2 {[%emt 0:01:48]} Bg7 {[%emt 0:00:24]} 8. Nc4 {[%emt 0:00:19]} O-O {[%emt 0:01:40]} 9. Bf4 {[%emt 0:04:01]} b6 {[%emt 0:02:31]} 10. e3 {[%emt 0:04:43]} Ba6 {[%emt 0:07:24]} 11. a4 {[%emt 0:16:25]} Bxc4 {[%emt 0:10:43]} 12. Bxc4 {[%emt 0:00:03]} Nh5 {[%emt 0:00:06]} 13. O-O {[%emt 0:03:04]} Nxf4 {[%emt 0:01:49]} 14. exf4 {[%emt 0:00:16]} Nd7 {[%emt 0:07:12]} 15. Qd3 {[%emt 0:01:31]} Qf6 {[%emt 0:05:52]} 16. g3 {[%emt 0:02:30]} Qd4 {[%emt 0:00:08]} 1/2-1/2

[Event "WSTCC-50 2024"]
[Site "Krakow"]
[Date "2024.07.06"]
[Round "5.11"]
[White "Adams, Mark"]
[Black "Staeblein, Christoph"]
[Result "0-1"]
[ECO "C16"]
[WhiteElo "1951"]
[BlackElo "1991"]
[Annotator "NA RC"]
[PlyCount "65"]
[EventDate "2024.07.01"]
[EventType "team-tourn"]
[EventCountry "POL"]
[SourceTitle "playchess.com"]
[Source "ChessBase"]
[SourceQuality "1"]
[TimeControl "40/5400+30:1800+30"]

1. e4 {[%emt 0:00:04]} e6 {[%emt 0:00:07]} 2. d4 {[%emt 0:00:18]} d5 {[%emt 0:00:06]} 3. Nc3 {[%emt 0:00:07]} Bb4 {[%emt 0:00:12]} 4. e5 {[%emt 0:00:13]} Ne7 {[%emt 0:00:08]} 5. Bd2 {[%emt 0:00:05]} Bxc3 {[%emt 0:00:12]} 6. Bxc3 {[%emt 0:00:37]} b6 {[%emt 0:00:06]} 7. Nf3 {[%emt 0:04:54]} Ba6 {[%emt 0:00:10]} 8. Bxa6 {[%emt 0:00:24]} Nxa6 {[%emt 0:00:07]} 9. h4 {[%emt 0:05:32]} Qd7 {[%emt 0:02:42]} 10. Qd3 {[%emt 0:07:03]} Nb8 {[%emt 0:00:53]} 11. h5 {[%emt 0:06:21]} h6 {[%emt 0:01:55]} 12. Bd2 {[%emt 0:03:20]} c5 {[%emt 0:00:36]} 13. c3 {[%emt 0:00:05]} Qa4 {[%emt 0:10:35]} 14. g4 {[%emt 0:08:51]} Nbc6 {[%emt 0:10:05]} 15. O-O {[%emt 0:05:16]} Rc8 {[%emt 0:09:17]} 16. b3 {[%emt 0:05:21]} Qa3 {[%emt 0:09:31]} 17. Qb5 {[%emt 0:04:08]} O-O {[%emt 0:11:47]} 18. g5 {[%emt 0:06:59]} hxg5 {[%emt 0:06:17]} 19. Bc1 {[%emt 0:11:47]} Qa5 {[%emt 0:00:17]} 20. Qxa5 {[%emt 0:00:12]} Nxa5 {[%emt 0:00:19]} 21. Bxg5 {[%emt 0:05:20]} Nf5 {[%emt 0:00:47]} 22. Be3 {[%emt 0:01:56]} f6 {[%emt 0:09:28]} 23. Kg2 {[%emt 0:01:30]} cxd4 {[%emt 0:03:20]} 24. cxd4 {[%emt 0:09:27]} Rc2 {[%emt 0:03:59]} 25. Kh3 {[%emt 0:02:01]} Kf7 {[%emt 0:01:00]} 26. Kg4 {[%emt 0:05:23]} Rfc8 {[%emt 0:03:11]} 27. Nh4 {[%emt 0:03:47]} Nxh4 {[%emt 0:02:27]} 28. Kxh4 {[%emt 0:00:15]} Nc6 {[%emt 0:00:32]} 29. Rfc1 {[%emt 0:00:48]} Nxd4 {[%emt 0:00:57]} 30. Rxc2 {[%emt 0:00:13]} Nf5+ {[%emt 0:00:10]} 31. Kh3 {[%emt 0:00:26]} Rxc2 {[%emt 0:00:08]} 32. h6 {[%emt 0:00:48]} gxh6 {[%emt 0:01:55]} 33. Bf4 {[%emt 0:01:16]} 0-1

[Event "WSTCC-50 2024"]
[Site "Krakow"]
[Date "2024.07.06"]
[Round "5.11"]
[White "Czyz, Andrzej"]
[Black "Jhunjhnuwala, Ramesh"]
[Result "1/2-1/2"]
[ECO "E10"]
[WhiteElo "1921"]
[BlackElo "2050"]
[Annotator "NA RC"]
[PlyCount "96"]
[EventDate "2024.07.01"]
[EventType "team-tourn"]
[EventCountry "POL"]
[SourceTitle "playchess.com"]
[Source "ChessBase"]
[SourceQuality "1"]
[TimeControl "40/5400+30:1800+30"]

1. d4 {[%emt 0:00:25]} Nf6 {[%emt 0:00:30]} 2. c4 {[%emt 0:00:21]} e6 {[%emt 0:00:35]} 3. Nf3 {[%emt 0:00:26]} d5 {[%emt 0:00:37]} 4. e3 {[%emt 0:01:03]} Be7 {[%emt 0:01:31]} 5. Nc3 {[%emt 0:00:21]} O-O {[%emt 0:00:47]} 6. Bd3 {[%emt 0:00:37]} dxc4 {[%emt 0:03:36]} 7. Bxc4 {[%emt 0:00:11]} c5 {[%emt 0:01:02]} 8. O-O {[%emt 0:01:52]} Nc6 {[%emt 0:01:36]} 9. a3 {[%emt 0:05:55]} a6 {[%emt 0:10:46]} 10. dxc5 {[%emt 0:02:39]} Bxc5 {[%emt 0:04:04]} 11. b4 {[%emt 0:01:01]} Qxd1 {[%emt 0:06:11]} 12. Rxd1 {[%emt 0:00:31]} Be7 {[%emt 0:02:31]} 13. Bb2 {[%emt 0:00:43]} b5 {[%emt 0:01:06]} 14. Bd3 {[%emt 0:06:06]} Bb7 {[%emt 0:02:53]} 15. Ne4 {[%emt 0:06:20]} Nxe4 {[%emt 0:08:38]} 16. Bxe4 {[%emt 0:00:07]} f5 {[%emt 0:01:40]} 17. Bc2 {[%emt 0:01:43]} Rad8 {[%emt 0:04:37]} 18. Bb3 {[%emt 0:01:06]} Kf7 {[%emt 0:01:15]} 19. Rac1 {[%emt 0:02:52]} Rxd1+ {[%emt 0:00:34]} 20. Rxd1 {[%emt 0:02:24]} Rd8 {[%emt 0:02:48]} 21. Kf1 {[%emt 0:08:42]} Rxd1+ {[%emt 0:00:22]} 22. Bxd1 {[%emt 0:00:02]} Bf6 {[%emt 0:01:39]} 23. Bxf6 {[%emt 0:04:25]} Kxf6 {[%emt 0:00:23]} 24. Ke2 {[%emt 0:06:06]} g5 {[%emt 0:18:05]} 25. g3 {[%emt 0:03:30]} e5 {[%emt 0:03:09]} 26. h4 {[%emt 0:02:00]} h6 {[%emt 0:00:14]} 27. hxg5+ {[%emt 0:00:26]} hxg5 {[%emt 0:00:10]} 28. Bb3 {[%emt 0:03:07]} a5 {[%emt 0:07:34]} 29. Bd5 {[%emt 0:04:41]} axb4 {[%emt 0:01:08]} 30. axb4 {[%emt 0:00:03]} Nd8 {[%emt 0:05:31]} 31. Bxb7 {[%emt 0:01:27]} Nxb7 {[%emt 0:00:05]} 32. Ne1 {[%emt 0:01:36]} Ke6 {[%emt 0:02:17]} 33. f3 {[%emt 0:03:14]} Kd5 {[%emt 0:01:19]} 34. Kd3 {[%emt 0:01:10]} Nd6 {[%emt 0:00:43]} 35. f4 {[%emt 0:05:02]} Ne4 {[%emt 0:01:58]} 36. fxe5 {[%emt 0:02:31]} Nxg3 {[%emt 0:02:44]} 37. e6 {[%emt 0:02:34]} Kxe6 {[%emt 0:00:07]} 38. Nf3 {[%emt 0:00:06]} Ne4 {[%emt 0:02:04]} 39. Nd4+ {[%emt 0:00:06]} Ke5 {[%emt 0:00:53]} 40. Nxb5 {[%emt 0:00:27]} f4 {[%emt 0:01:14]} 41. exf4+ {[%emt 0:30:29]} gxf4 {[%emt 0:30:11]} 42. Ke2 {[%emt 0:01:04]} Kd5 {[%emt 0:01:00]} 43. Na3 {[%emt 0:01:01]} Nc3+ {[%emt 0:00:55]} 44. Kf3 {[%emt 0:00:21]} Na2 {[%emt 0:00:38]} 45. b5 {[%emt 0:00:16]} Kc5 {[%emt 0:00:16]} 46. Kxf4 {[%emt 0:00:17]} Nc3 {[%emt 0:00:09]} 47. Ke3 {[%emt 0:00:32]} Nxb5 {[%emt 0:00:06]} 48. Nxb5 Kxb5 1/2-1/2

[Event "WSTCC-50 2024"]
[Site "Krakow"]
[Date "2024.07.06"]
[Round "5.12"]
[White "Koganov, Mikhail"]
[Black "Townsend, M Paul"]
[Result "0-1"]
[ECO "A05"]
[WhiteElo "2177"]
[BlackElo "2147"]
[Annotator "RC"]
[PlyCount "110"]
[EventDate "2024.07.01"]
[EventType "team-tourn"]
[EventCountry "POL"]
[SourceTitle "playchess.com"]
[Source "ChessBase"]
[SourceQuality "1"]
[TimeControl "40/5400+30:1800+30"]

1. Nf3 {[%emt 0:00:03]} Nf6 {[%emt 0:00:14]} 2. g3 {[%emt 0:00:05]} d5 {[%emt 0:00:17]} 3. Bg2 {[%emt 0:00:04]} e6 {[%emt 0:00:17]} 4. O-O {[%emt 0:00:08]} Be7 {[%emt 0:00:47]} 5. c4 {[%emt 0:00:51]} O-O {[%emt 0:00:17]} 6. b3 {[%emt 0:00:16]} c5 {[%emt 0:01:23]} 7. e3 {[%emt 0:00:18]} Nc6 {[%emt 0:00:25]} 8. Bb2 {[%emt 0:00:12]} d4 {[%emt 0:01:41]} 9. exd4 {[%emt 0:00:08]} cxd4 {[%emt 0:00:05]} 10. Re1 {[%emt 0:00:12]} Re8 {[%emt 0:01:45]} 11. d3 {[%emt 0:03:39]} Qb6 {[%emt 0:09:27]} 12. Na3 {[%emt 0:08:34]} Bb4 {[%emt 0:07:15]} 13. Re2 {[%emt 0:01:02]} e5 {[%emt 0:00:51]} 14. Nc2 {[%emt 0:00:42]} Bd6 {[%emt 0:11:53]} 15. h3 {[%emt 0:07:54]} h6 {[%emt 0:04:47]} 16. Ba3 {[%emt 0:19:55]} Bxa3 {[%emt 0:05:12]} 17. Nxa3 {[%emt 0:00:07]} Bf5 {[%emt 0:00:19]} 18. Qd2 {[%emt 0:23:29]} Re7 {[%emt 0:23:03]} 19. Rae1 {[%emt 0:07:42]} Rae8 {[%emt 0:00:26]} 20. Nh2 {[%emt 0:06:53]} Nb4 {[%emt 0:10:26]} 21. Be4 {[%emt 0:03:25]} Bxh3 {[%emt 0:04:55]} 22. Nb5 {[%emt 0:00:18]} Na6 {[%emt 0:02:34]} 23. b4 {[%emt 0:01:16]} Nxe4 {[%emt 0:02:12]} 24. Rxe4 {[%emt 0:01:32]} Bf5 {[%emt 0:00:32]} 25. R4e2 {[%emt 0:00:32]} Nc7 {[%emt 0:00:56]} 26. Nxc7 {[%emt 0:02:10]} Qxc7 {[%emt 0:00:08]} 27. f3 {[%emt 0:00:10]} Qd6 {[%emt 0:03:10]} 28. Kf2 {[%emt 0:00:57]} Qg6 {[%emt 0:01:38]} 29. Rd1 {[%emt 0:00:06]} Qh5 {[%emt 0:01:27]} 30. Kg1 {[%emt 0:00:12]} Bc8 {[%emt 0:00:44]} 31. Qe1 {[%emt 0:04:34]} b6 {[%emt 0:00:38]} 32. Qf2 {[%emt 0:01:04]} Bb7 {[%emt 0:00:52]} 33. a4 {[%emt 0:01:54]} Qf5 {[%emt 0:00:23]} 34. Ra2 {[%emt 0:01:54]} h5 {[%emt 0:00:38]} 35. a5 {[%emt 0:00:14]} Re6 {[%emt 0:01:33]} 36. axb6 {[%emt 0:00:34]} axb6 {[%emt 0:00:22]} 37. Ra7 {[%emt 0:00:59]} R8e7 {[%emt 0:00:18]} 38. c5 {[%emt 0:00:30]} bxc5 {[%emt 0:00:54]} 39. bxc5 {[%emt 0:00:02]} Rg6 {[%emt 0:01:06]} 40. Rb1 {[%emt 0:03:43]} Qc8 {[%emt 0:03:01]} 41. Rb6 {[%emt 0:03:37]} Rxb6 {[%emt 0:10:35]} 42. cxb6 {[%emt 0:00:56]} Re6 {[%emt 0:01:24]} 43. Qb2 {[%emt 0:02:16]} Rc6 {[%emt 0:00:22]} 44. Ra2 {[%emt 0:04:25]} Rc1+ {[%emt 0:02:06]} 45. Kg2 {[%emt 0:01:05]} Bd5 {[%emt 0:00:37]} 46. b7 {[%emt 0:00:51]} Bxb7 {[%emt 0:01:40]} 47. Qd2 {[%emt 0:00:52]} Qc3 {[%emt 0:01:31]} 48. Rb2 {[%emt 0:00:43]} Qxd2+ {[%emt 0:01:17]} 49. Rxd2 {[%emt 0:00:10]} g5 {[%emt 0:00:59]} 50. Kf2 {[%emt 0:00:17]} Kg7 {[%emt 0:00:48]} 51. Rb2 {[%emt 0:03:59]} Bc6 {[%emt 0:00:30]} 52. f4 {[%emt 0:01:22]} exf4 {[%emt 0:02:46]} 53. gxf4 {[%emt 0:00:08]} g4 {[%emt 0:00:09]} 54. Ra2 {[%emt 0:01:51]} Rh1 {[%emt 0:02:12]} 55. Nf1 {[%emt 0:00:40]} g3+ {[%emt 0:00:20]} 0-1

[Event "WSTCC-50 2024"]
[Site "Krakow"]
[Date "2024.07.06"]
[Round "5.12"]
[White "Koop, Thilo"]
[Black "Thomas, Gary"]
[Result "1-0"]
[ECO "B00"]
[WhiteElo "2088"]
[BlackElo "1865"]
[Annotator "NA RC"]
[PlyCount "67"]
[EventDate "2024.07.01"]
[EventType "team-tourn"]
[EventCountry "POL"]
[SourceTitle "playchess.com"]
[Source "ChessBase"]
[SourceQuality "1"]
[TimeControl "40/5400+30:1800+30"]

1. e4 {[%emt 0:00:02]} Nc6 {[%emt 0:00:17]} 2. Nf3 {[%emt 0:00:38]} f5 {[%emt 0:00:12]} 3. exf5 {[%emt 0:03:06]} d5 {[%emt 0:00:08]} 4. d4 {[%emt 0:00:12]} Bxf5 {[%emt 0:00:57]} 5. Bb5 {[%emt 0:00:41]} Qd6 {[%emt 0:03:50]} 6. Ne5 {[%emt 0:01:29]} a6 {[%emt 0:05:57]} 7. Bxc6+ {[%emt 0:01:07]} bxc6 {[%emt 0:00:09]} 8. b3 {[%emt 0:07:17]} g6 {[%emt 0:05:09]} 9. O-O {[%emt 0:03:04]} Nh6 {[%emt 0:07:10]} 10. Re1 {[%emt 0:02:32]} Nf7 {[%emt 0:14:26]} 11. Bf4 {[%emt 0:12:11]} Bg7 {[%emt 0:13:08]} 12. Nxf7 {[%emt 0:07:38]} Qxf4 {[%emt 0:00:07]} 13. Nxh8 {[%emt 0:00:10]} Bxh8 {[%emt 0:00:05]} 14. Qe2 {[%emt 0:01:10]} O-O-O {[%emt 0:08:49]} 15. c3 {[%emt 0:01:30]} Re8 {[%emt 0:03:01]} 16. Nd2 {[%emt 0:06:11]} Bg4 {[%emt 0:06:22]} 17. Qe3 {[%emt 0:03:31]} g5 {[%emt 0:09:31]} 18. h3 {[%emt 0:05:06]} Bh5 {[%emt 0:02:38]} 19. Nf3 {[%emt 0:01:37]} Bxf3 {[%emt 0:02:35]} 20. Qxf3 {[%emt 0:00:08]} Qd6 {[%emt 0:01:31]} 21. Qg4+ {[%emt 0:00:34]} e6 {[%emt 0:00:42]} 22. Qxg5 {[%emt 0:00:52]} c5 {[%emt 0:02:05]} 23. Qg4 {[%emt 0:00:30]} cxd4 {[%emt 0:00:38]} 24. cxd4 {[%emt 0:00:07]} Kb7 {[%emt 0:00:38]} 25. Rad1 {[%emt 0:01:18]} Ka7 {[%emt 0:01:13]} 26. Re3 {[%emt 0:00:33]} e5 {[%emt 0:00:24]} 27. Qh5 {[%emt 0:01:19]} Re6 {[%emt 0:01:16]} 28. dxe5 {[%emt 0:00:11]} Bxe5 {[%emt 0:00:42]} 29. Qxh7 {[%emt 0:06:15]} Rh6 {[%emt 0:01:09]} 30. Qf7 {[%emt 0:00:26]} d4 {[%emt 0:03:02]} 31. Red3 {[%emt 0:02:01]} Rf6 {[%emt 0:02:39]} 32. Qc4 {[%emt 0:05:27]} c5 {[%emt 0:01:39]} 33. b4 {[%emt 0:01:32]} Bh2+ {[%emt 0:00:46]} 34. Kf1 {[%emt 0:04:00]} 1-0

[Event "WSTCC-50 2024"]
[Site "Krakow"]
[Date "2024.07.06"]
[Round "5.12"]
[White "Jhunjhnuwala, Suresh"]
[Black "Wielosz, Jaroslaw"]
[Result "1-0"]
[ECO "C45"]
[WhiteElo "1888"]
[BlackElo "1920"]
[Annotator "NA RC"]
[PlyCount "73"]
[EventDate "2024.07.01"]
[EventType "team-tourn"]
[EventCountry "POL"]
[SourceTitle "playchess.com"]
[Source "ChessBase"]
[SourceQuality "1"]
[TimeControl "40/5400+30:1800+30"]

1. e4 {[%emt 0:00:05]} e5 {[%emt 0:00:09]} 2. Nf3 {[%emt 0:00:05]} Nc6 {[%emt 0:00:09]} 3. d4 {[%emt 0:00:08]} exd4 {[%emt 0:00:10]} 4. Nxd4 {[%emt 0:00:06]} Nf6 {[%emt 0:00:12]} 5. Nxc6 {[%emt 0:00:57]} bxc6 {[%emt 0:00:14]} 6. e5 {[%emt 0:00:16]} Qe7 {[%emt 0:00:13]} 7. Qe2 {[%emt 0:00:16]} Nd5 {[%emt 0:00:12]} 8. h4 {[%emt 0:02:22]} a5 {[%emt 0:01:05]} 9. c4 {[%emt 0:25:01]} Ba6 {[%emt 0:02:09]} 10. Rh3 {[%emt 0:03:26]} a4 {[%emt 0:27:50]} 11. Qe4 {[%emt 0:25:20]} Qb4+ {[%emt 0:15:03]} 12. Nd2 {[%emt 0:03:30]} Nb6 {[%emt 0:01:56]} 13. b3 {[%emt 0:05:25]} a3 {[%emt 0:05:05]} 14. Be2 {[%emt 0:01:08]} Bb7 {[%emt 0:03:48]} 15. Kf1 {[%emt 0:00:33]} Be7 {[%emt 0:03:06]} 16. Nf3 {[%emt 0:04:48]} Qc3 {[%emt 0:13:35]} 17. Rb1 {[%emt 0:00:51]} d5 {[%emt 0:05:26]} 18. exd6 {[%emt 0:06:35]} cxd6 {[%emt 0:00:17]} 19. Nd4 {[%emt 0:02:00]} Qa5 {[%emt 0:07:27]} 20. Re3 {[%emt 0:05:34]} Qe5 {[%emt 0:02:45]} 21. Nf5 {[%emt 0:00:30]} Qxe4 {[%emt 0:01:47]} 22. Rxe4 {[%emt 0:00:04]} Nc8 {[%emt 0:00:31]} 23. Bf4 {[%emt 0:04:04]} Kd8 {[%emt 0:03:02]} 24. Nxe7 {[%emt 0:01:39]} Nxe7 {[%emt 0:00:33]} 25. Bxd6 {[%emt 0:00:05]} Nf5 {[%emt 0:01:09]} 26. Bc5 {[%emt 0:00:18]} Kc7 {[%emt 0:02:01]} 27. g4 {[%emt 0:01:41]} Nxh4 {[%emt 0:00:28]} 28. Re7+ {[%emt 0:00:18]} Kb8 {[%emt 0:00:49]} 29. Rd1 {[%emt 0:00:28]} Ng6 {[%emt 0:01:07]} 30. Rxf7 {[%emt 0:00:40]} Ra5 {[%emt 0:01:42]} 31. Bb6 {[%emt 0:02:10]} Ra6 {[%emt 0:01:09]} 32. c5 {[%emt 0:00:21]} Nh4 {[%emt 0:00:46]} 33. Rdd7 {[%emt 0:00:22]} Bc8 {[%emt 0:00:13]} 34. Rde7 {[%emt 0:01:04]} Ng6 {[%emt 0:00:22]} 35. Rc7 {[%emt 0:01:13]} Ne5 {[%emt 0:00:54]} 36. Rxg7 {[%emt 0:00:51]} Rf8 {[%emt 0:00:24]} 37. Rxc8+ {[%emt 0:01:21]} 1-0

[Event "WSTCC-50 2024"]
[Site "Krakow"]
[Date "2024.07.06"]
[Round "5.13"]
[White "Oratovsky, Michael"]
[Black "Mrva, Martin"]
[Result "1/2-1/2"]
[ECO "C50"]
[WhiteElo "2417"]
[BlackElo "2361"]
[Annotator "TA"]
[PlyCount "45"]
[EventDate "2024.07.01"]
[EventType "team-tourn"]
[EventCountry "POL"]
[SourceTitle "playchess.com"]
[Source "ChessBase"]
[SourceQuality "1"]
[TimeControl "40/5400+30:1800+30"]

{[%evp 10,45,25,5,10,11,4,2,18,16,16,0,6,-4,6,9,32,35,57,56,56,47,57,54,64,11,8,18,7,0,4,16,17,8,22,11,23,7]} 1. e4 {[%emt 0:09:27]} e5 {[%emt 0:00:30]} 2. Nf3 {[%emt 0:00:12]} Nc6 {[%emt 0:00:08]} 3. Bc4 {[%emt 0:05:55]} Nf6 {[%emt 0:00:22]} 4. d3 {[%emt 0:00:06]} Bc5 {[%emt 0:00:13]} 5. c3 {[%emt 0:00:05]} d6 {[%emt 0:00:14]} 6. Nbd2 {[%emt 0:00:15][%cal Bb1d2,Bd2f1,Bf1g3][%mdl 32]} a5 {[%emt 0:00:12]} 7. Nf1 {[%emt 0:03:24]} Be6 {[%emt 0:00:53] White must now prevent ...Bxc4.} 8. Bb5 {[%emt 0:02:13]} O-O {[%emt 0:00:23] The position is equal.} 9. Ng3 {[%emt 0:00:35]} d5 {[%emt 0:01:32]} 10. Qe2 {[%emt 0:31:56]} Na7 {[%emt 0:18:23]} 11. Ba4 {[%emt 0:07:50]} b5 {[%emt 0:01:49]} 12. exd5 {[%emt 0:13:16]} Nxd5 {[%emt 0:07:35]} 13. Bc2 {[%emt 0:01:00]} Nf4 {[%emt 0:07:53]} 14. Bxf4 {[%emt 0:01:09]} exf4 {[%emt 0:00:06]} 15. Ne4 {[%emt 0:00:46] Excellent horsemanship.} Be7 {[%emt 0:03:55]} 16. O-O {[%emt 0:02:41]} c5 {[%emt 0:05:59]} 17. Bb3 {[%emt 0:04:12]} (17. Rad1 $14) 17... Bg4 $11 {[%emt 0:14:36]} 18. a4 {[%emt 0:02:26]} b4 {[%emt 0:00:50]} 19. Rfe1 {[%emt 0:05:55]} Nc6 {[%emt 0:00:54]} 20. Ned2 {[%emt 0:01:59]} Bf6 {[%emt 0:14:04]} 21. Qe4 {[%emt 0:00:11][%csl LRc6,LRf4]} bxc3 {[%emt 0:04:19]} 22. bxc3 {[%emt 0:00:16]} Qd7 {[%emt 0:01:28]} 23. Rac1 {[%emt 0:03:20] Weighted Error Value: White=0.07 (flawless) /Black=0.05 (flawless) .  Mistake:       	White=1     	---        OK:         	White=11    	Black=8      Best:        	White=1     	Black=1} 1/2-1/2